bitfinex-derivatives/quotes_ETHF0:USTF0_20260204
["timestamp","ask_amount","ask_price","bid_price","bid_amount"]
[1770233868431,7.23977811,2143.2,2142.0,7.54443168]
[1770233869324,7.23977811,2143.0,2141.9,14.091]
[1770233869535,7.47353811,2143.0,2141.7,10.33079152]
[1770233870029,7.47353811,2143.0,2141.6,7.54443168]
[1770233870229,7.23977811,2142.8,2141.5,2.78635984]
[1770233870432,7.47356811,2142.8,2141.3,7.54443168]
[1770233870834,7.23977811,2142.6,2141.1,21.72043168]
[1770233871034,7.23977811,2142.6,2141.2,7.54443168]
[1770233872034,7.23977811,2142.4,2141.0,0.00412326]
[1770233872531,7.23977811,2142.4,2141.0,7.54855494]
[1770233872736,7.23977811,2142.2,2141.0,0.00412326]
[1770233873434,12.74248318,2142.2,2141.0,0.00412326]
[1770233873635,7.23977811,2142.1,2141.0,7.54855494]
[1770233874029,7.0167796,2141.8,2141.0,0.00412326]
[1770233874229,7.02204158,2141.8,2140.7,0.467]
[1770233874738,7.02204158,2141.8,2140.7,7.59029112]
[1770233875137,7.02204158,2141.8,2140.7,7.59362779]
[1770233875340,0.00526198,2141.8,2140.9,7.12329112]
[1770233875537,7.0167796,2142.5,2141.1,7.12329112]
[1770233875839,0.467,2142.6,2141.6,7.12329112]
[1770233876138,7.0667796,2143.4,2142.0,7.12329112]
[1770233876333,7.0667796,2143.4,2142.2,7.12329112]
[1770233876537,7.07265454,2143.4,2142.2,7.12907069]
[1770233880439,7.07265454,2143.4,2141.7,3.48724984]
[1770233880440,7.37579954,2143.1,2141.6,7.00018777]
[1770233880740,7.37579954,2143.0,2141.6,7.00018777]
[1770233880940,7.37579954,2142.7,2141.3,7.00018777]
[1770233881235,7.37579954,2142.7,2141.5,7.00018777]
[1770233881433,7.37579954,2142.7,2141.5,7.23950107]
[1770233884237,7.37579954,2142.7,2141.5,0.0053933]
[1770233884438,7.37579954,2142.6,2141.5,0.0053933]
[1770233884645,5.50270507,2142.4,2140.9,7.00018777]
[1770233884845,7.37579954,2142.3,2140.9,7.00018777]
[1770233885139,7.37579954,2142.3,2141.1,7.00018777]
[1770233885739,7.37579954,2142.3,2141.1,7.00385063]
[1770233886541,10.65170507,2143.1,2142.0,7.00018777]
[1770233886848,0.05587494,2143.4,2142.4,7.00018777]
[1770233887242,7.43167448,2143.4,2142.5,14.33]
[1770233887637,7.43167448,2143.4,2142.2,7.00018777]
[1770233888344,7.43167448,2143.4,2142.4,7.00018777]
[1770233888945,0.05587494,2143.4,2142.4,7.00018777]
[1770233889144,7.43167448,2143.4,2142.4,7.00018777]
[1770233889943,7.43167448,2143.4,2142.0,7.00018777]
[1770233890140,7.43167448,2143.4,2142.1,21.34918777]
[1770233891146,7.43167448,2143.4,2142.2,7.00018777]
[1770233891945,7.43167448,2143.4,2142.1,14.349]
[1770233892144,7.43167448,2143.4,2142.0,0.23386]
[1770233892346,7.43167448,2143.4,2142.1,14.38]
[1770233892546,7.43167448,2143.4,2142.1,14.61385]
[1770233892945,7.43167448,2143.4,2142.2,7.00018777]
[1770233893447,7.43167448,2143.4,2142.1,14.38]
[1770233893648,7.37579954,2143.3,2142.1,14.38]
[1770233895047,7.37579954,2143.3,2141.9,7.00018777]
[1770233895251,7.37579954,2143.3,2142.1,7.00018777]
[1770233895449,7.37579954,2143.3,2142.1,7.23403777]
[1770233895651,7.37579954,2143.3,2142.1,7.00018777]
[1770233895951,7.37579954,2143.3,2142.0,14.416]
[1770233896352,7.37579954,2143.3,2142.0,21.41618777]
[1770233897146,7.37579954,2143.3,2142.1,7.00018777]
[1770233897343,5.55858001,2143.4,2142.1,7.00018777]
[1770233897547,0.05587494,2143.4,2142.7,7.00018777]
[1770233897847,7.37579954,2144.3,2142.8,7.00018777]
[1770233898150,7.60941954,2144.3,2142.9,21.45418777]
[1770233898750,7.37579954,2144.0,2142.9,0.00563284]
[1770233898947,7.60944954,2144.0,2142.9,0.00563284]
[1770233899345,0.00367785,2144.3,2142.9,7.00582061]
[1770233899547,0.00367785,2144.3,2143.1,7.00018777]
[1770233899744,1.07417,2145.3,2143.1,7.00018777]
[1770233899745,7.60935954,2144.9,2143.4,7.00018777]
[1770233899949,0.1,2145.1,2143.2,9.78654761]
[1770233899950,7.37579954,2144.7,2143.2,9.78654761]
[1770233900152,7.37579954,2144.4,2143.2,14.479]
[1770233900754,7.60943954,2144.2,2143.1,14.485]
[1770233901152,7.37579954,2144.0,2143.1,14.485]
[1770233901455,7.37579954,2144.3,2143.2,7.00018777]
[1770233904449,7.37579954,2144.3,2143.1,14.485]
[1770233904651,7.60941954,2144.3,2142.9,7.40940712]
[1770233904853,7.67710613,2143.8,2142.9,0.00563284]
[1770233905156,7.67710613,2143.6,2142.2,14.545]
[1770233905553,7.91080613,2143.6,2142.0,7.63763428]
[1770233905853,7.67710613,2143.6,2142.2,7.40377428]
[1770233906058,7.67710613,2143.6,2142.5,7.40377428]
[1770233906753,7.67710613,2143.9,2142.7,7.63756428]
[1770233907356,7.67710613,2143.9,2142.5,14.557]
[1770233908759,7.67710613,2143.9,2142.6,7.40377428]
[1770233909758,7.67710613,2143.2,2142.2,0.00327969]
[1770233910150,7.91084613,2143.2,2142.2,0.00327969]
[1770233910352,7.67710613,2143.0,2141.7,7.40377428]
[1770233910549,7.67710613,2143.0,2141.7,0.23389]
[1770233910752,7.67710613,2143.4,2142.1,7.40377428]
[1770233911357,7.67710613,2143.4,2142.1,7.40950366]
[1770233911557,7.91082613,2143.4,2142.1,7.40950366]
[1770233911759,7.91084613,2143.2,2142.1,0.00572938]
[1770233911955,7.67710613,2143.0,2142.1,0.00572938]
[1770233912558,7.91087613,2142.9,2142.1,0.00572938]
[1770233913761,7.67710613,2143.2,2142.1,7.40950366]
[1770233913963,7.67710613,2143.5,2142.2,14.608]
[1770233914153,0.467,2143.6,2142.3,7.40377428]
[1770233914357,0.467,2143.6,2142.5,7.40377428]
[1770233915062,5.50270507,2144.2,2142.7,7.63756428]
[1770233915063,7.67710613,2144.2,2142.7,7.63756428]
[1770233915261,0.47238294,2144.4,2143.1,7.63751428]
[1770233915461,0.47238294,2144.4,2143.3,7.40377428]
[1770233915762,0.00538294,2144.4,2143.5,7.40377428]
[1770233916162,7.68248907,2144.4,2143.4,14.634]
[1770233916363,7.68248907,2144.4,2143.2,7.40377428]
[1770233918961,7.67710613,2144.3,2143.2,7.40377428]
[1770233919261,0.00538294,2144.4,2143.2,7.40377428]
[1770233919466,7.67710613,2144.9,2143.6,7.40377428]
[1770233919666,0.1,2145.1,2143.8,7.40377428]
[1770233919864,7.77710613,2145.1,2143.8,7.40377428]
[1770233920560,7.78296507,2145.1,2143.8,0.00336233]
[1770233920866,7.67710613,2145.0,2143.8,0.00336233]
[1770233921766,7.67710613,2144.7,2143.8,0.00336233]
[1770233922169,13.1798112,2144.7,2143.8,0.00336233]
[1770233922366,7.67710613,2144.6,2143.8,0.00336233]
[1770233923565,7.67710613,2144.6,2143.7,0.8582]
[1770233924570,7.67710613,2144.6,2143.7,0.86164401]
[1770233925361,7.67710613,2144.9,2143.8,7.63744428]
[1770233926070,7.67710613,2144.9,2143.7,0.86164401]
[1770233926668,7.67710613,2144.7,2143.7,0.86164401]
[1770233926870,7.91068613,2144.7,2143.7,0.86164401]
[1770233927070,7.67710613,2144.5,2143.7,0.86164401]
[1770233927671,7.91070613,2144.5,2143.7,0.86164401]
[1770233928168,7.67710613,2144.8,2143.7,8.26541829]
[1770233928775,7.91066613,2144.8,2143.7,8.26541829]
[1770233929066,7.67710613,2144.6,2143.7,8.26541829]
[1770233929273,7.91068613,2144.6,2143.7,0.86164401]
[1770233929568,8.75197613,2143.9,2142.4,14.36967388]
[1770233929770,7.67710613,2143.5,2142.4,7.40377428]
[1770233929968,1.54187,2143.9,2142.4,7.40377428]
[1770233929969,7.91083613,2143.3,2142.4,7.40377428]
[1770233930165,7.67710613,2143.7,2142.4,7.40377428]
[1770233930569,7.91435523,2143.7,2142.4,7.40942085]
[1770233930875,7.91080613,2143.6,2142.6,7.40377428]
[1770233931566,0.23373,2143.3,2142.5,0.0763]
[1770233931765,0.0035691,2143.7,2142.5,7.48007428]
[1770233931971,0.23371,2143.5,2142.5,7.48007428]
[1770233932473,8.75221613,2143.4,2142.5,0.0763]
[1770233932777,7.67710613,2143.4,2142.0,7.40377428]
[1770233932974,7.91082613,2143.4,2142.0,7.40377428]
[1770233933974,7.50521706,2143.0,2142.0,7.40377428]
[1770233934175,0.23378,2142.8,2142.0,7.40377428]
[1770233934676,7.50524706,2142.7,2141.6,7.67874615]
[1770233935172,8.34693706,2142.7,2141.6,7.67874615]
[1770233935376,0.23386,2142.2,2141.3,7.67874615]
[1770233935572,0.23389,2141.8,2140.7,7.67874615]
[1770233935878,7.50534706,2141.8,2140.7,7.67874615]
[1770233936678,7.50991604,2142.2,2140.7,7.91275615]
[1770233937079,0.23387,2142.0,2140.7,7.67874615]
[1770233937270,7.50532706,2142.0,2140.7,7.67874615]
[1770233939777,0.23387,2142.0,2140.7,7.67874615]
[1770233940174,0.00460898,2142.2,2140.7,7.91275615]
[1770233940376,0.00460898,2142.2,2140.9,7.60068958]
[1770233940679,0.00460898,2142.2,2141.1,7.60068958]
[1770233941680,7.62140897,2142.7,2141.3,7.60068958]
[1770233942075,0.23378,2142.8,2141.3,7.83462958]
[1770233942282,8.08840897,2143.0,2141.5,7.60068958]
[1770233942680,8.09236781,2143.0,2141.5,7.60068958]
[1770233944083,7.62140897,2142.7,2141.5,7.60068958]
[1770233945578,7.62140897,2143.6,2142.4,7.60068958]
[1770233945783,8.08840897,2143.9,2142.5,0.23381]
[1770233945983,7.62140897,2143.7,2142.5,0.23381]
[1770233946180,7.62140897,2143.5,2141.7,7.60068958]
[1770233946385,7.85515897,2143.1,2141.7,7.60068958]
[1770233946583,7.85862421,2143.1,2141.7,7.60068958]
[1770233946778,7.62536781,2142.8,2141.7,7.60068958]
[1770233947184,7.62536781,2142.7,2141.7,7.60068958]
[1770233947380,0.467,2143.0,2141.7,7.60068958]
[1770233947581,8.08840897,2143.0,2141.7,7.83458958]
[1770233947776,8.32216897,2143.0,2141.9,7.60068958]
[1770233948177,7.62140897,2142.8,2141.9,7.60068958]
[1770233948385,7.62536781,2142.8,2141.9,7.60068958]
[1770233948584,0.00395884,2142.7,2141.9,7.60068958]
[1770233948786,0.00395884,2142.5,2141.6,8.45348958]
[1770233949085,7.62536781,2142.6,2141.6,8.45348958]
[1770233949279,7.62536781,2142.9,2141.6,0.8528]
[1770233949486,7.62140897,2142.6,2141.6,0.8528]
[1770233949685,7.85916781,2142.6,2141.6,0.8528]
[1770233949882,7.62536781,2142.2,2141.6,0.1217793]
[1770233950082,7.62140897,2142.2,2141.6,0.1217793]
[1770233950282,7.62140897,2142.6,2141.6,0.1217793]
[1770233950484,7.62140897,2142.4,2141.6,0.1217793]
[1770233950685,7.62140897,2142.2,2141.6,0.1217793]
[1770233950886,7.85525897,2142.2,2141.1,7.60421297]
[1770233951085,7.85921781,2142.2,2141.1,7.60421297]
[1770233951690,7.85520897,2142.6,2141.1,7.60421297]
[1770233952087,7.62140897,2142.4,2141.1,7.60421297]
[1770233952789,7.62140897,2142.2,2141.1,7.60421297]
[1770233953084,7.62140897,2142.2,2141.1,0.00352339]
[1770233953289,7.62140897,2141.7,2141.1,0.00352339]
[1770233953489,7.62140897,2142.0,2141.1,7.60421297]
[1770233954092,0.467,2142.1,2141.1,7.60421297]
[1770233954287,8.08840897,2142.1,2141.1,7.60421297]
[1770233954488,7.85527897,2142.0,2141.1,0.00352339]
[1770233954689,7.62536781,2141.9,2141.1,0.00352339]
[1770233955088,0.00395884,2141.8,2141.1,0.00352339]
[1770233955290,7.62536781,2141.8,2141.1,0.00352339]
[1770233955486,0.00395884,2141.7,2141.1,0.00352339]
[1770233955987,0.00395884,2141.4,2140.4,7.60068958]
[1770233956193,0.23388,2141.9,2140.4,7.60068958]
[1770233956390,7.85529897,2141.8,2140.4,7.60068958]
[1770233957192,7.86019329,2141.8,2140.4,7.60495081]
[1770233957493,7.62630329,2141.8,2140.4,7.83899081]
[1770233957688,0.00489432,2141.8,2140.4,7.83899081]
[1770233957893,7.86019329,2141.8,2140.4,7.60495081]
[1770233958191,7.62140897,2141.6,2140.4,7.60495081]
[1770233958489,7.85927781,2141.6,2140.4,7.60495081]
[1770233958693,7.62140897,2141.4,2140.4,7.60495081]
[1770233958993,7.62630329,2141.8,2140.4,7.60495081]
[1770233959192,7.62630329,2141.8,2140.6,7.60068958]
[1770233959794,0.00489432,2141.8,2140.8,7.60068958]
[1770233960093,7.62140897,2142.4,2141.1,7.60068958]
[1770233960593,7.62140897,2141.9,2140.8,7.60068958]
[1770233960994,7.62536781,2141.5,2140.5,7.60068958]
[1770233961286,7.62140897,2141.5,2140.4,0.00426123]
[1770233961488,7.85930781,2141.3,2140.4,0.00426123]
[1770233961688,7.85534897,2141.3,2140.4,0.00426123]
[1770233961889,7.62536781,2141.1,2140.4,0.00426123]
[1770233962287,0.23389,2141.8,2140.4,7.60495081]
[1770233962288,7.62140897,2141.4,2140.4,7.60495081]
[1770233962689,7.62536781,2141.4,2140.4,7.60495081]
[1770233963095,7.62536781,2141.2,2140.4,0.00426123]
[1770233963595,7.62140897,2141.2,2140.4,0.00426123]
[1770233963796,0.00395884,2141.1,2140.4,0.00426123]
[1770233963995,7.62140897,2141.2,2140.4,7.18836992]
[1770233965493,7.62140897,2141.2,2140.4,0.00426123]
[1770233965690,7.65546439,2141.6,2140.4,7.18836992]
[1770233967900,7.6599085,2141.9,2140.5,7.41813869]
[1770233968300,7.6599085,2141.9,2140.7,7.18410869]
[1770233968701,0.00444411,2141.9,2140.9,7.18410869]
[1770233968894,0.00395884,2141.8,2140.9,7.18410869]
[1770233969403,0.00444411,2141.9,2141.1,7.18410869]
[1770233969903,0.00444411,2141.9,2140.8,7.18410869]
[1770233969904,0.00395884,2141.6,2140.8,7.18410869]
[1770233970097,7.65942323,2141.8,2140.8,7.18410869]
[1770233970298,0.00395884,2141.7,2140.8,7.18410869]
[1770233971298,0.00395884,2141.6,2140.8,7.18410869]
[1770233972496,0.00395884,2141.2,2140.5,7.18410869]
[1770233972693,7.65546439,2141.4,2140.5,7.18410869]
[1770233972900,0.00395884,2141.2,2140.5,7.18410869]
[1770233973099,0.00395884,2141.2,2140.4,0.00426123]
[1770233973295,0.00395884,2141.1,2140.4,0.00426123]
[1770233973500,0.00395884,2141.3,2140.4,7.18836992]
[1770233973700,7.65942323,2141.4,2140.4,7.18836992]
[1770233974102,0.00395884,2141.3,2140.4,7.18836992]
[1770233974505,0.00395884,2141.2,2140.4,7.18836992]
[1770233974704,0.00395884,2141.3,2140.4,7.18836992]
[1770233975305,0.00395884,2141.2,2140.4,7.18836992]
[1770233975505,7.88937439,2141.7,2140.4,7.18836992]
[1770233975805,0.00395884,2141.5,2140.4,7.18836992]
[1770233976004,0.00395884,2141.4,2140.4,7.18836992]
[1770233976208,0.00395884,2141.5,2140.4,7.18836992]
[1770233976704,0.00395884,2141.4,2140.4,7.18836992]
[1770233977004,0.00395884,2141.5,2140.4,7.18836992]
[1770233977203,7.65942323,2141.5,2140.4,7.18836992]
[1770233977400,0.00395884,2141.4,2140.4,7.18836992]
[1770233978808,0.00395884,2141.3,2140.4,7.18836992]
[1770233979007,0.00395884,2141.4,2140.4,7.18836992]
[1770233979306,0.00395884,2141.2,2140.4,7.18836992]
[1770233979506,0.00395884,2141.4,2140.4,7.18836992]
[1770233980008,7.65546439,2141.6,2140.4,7.18836992]
[1770233980009,0.00395884,2141.2,2140.4,7.18836992]
[1770233980209,0.00395884,2141.3,2140.4,7.18836992]
[1770233980708,0.00395884,2141.2,2140.4,7.18836992]
[1770233980909,0.00395884,2141.3,2140.5,7.18410869]
[1770233981206,0.00395884,2141.5,2140.5,7.18410869]
[1770233981411,0.00444411,2141.9,2140.9,9.9637104]
[1770233981710,0.00444411,2141.9,2141.1,7.18410869]
[1770233982902,0.00444411,2141.9,2141.3,7.18410869]
[1770233983209,13.12824523,2142.4,2141.3,7.18410869]
[1770233983410,7.65942323,2142.3,2141.3,7.18410869]
[1770233983705,0.00395884,2142.1,2141.3,7.18410869]
[1770233983907,7.65942323,2142.0,2141.0,9.9637104]
[1770233984108,7.66009925,2142.0,2141.0,9.9637104]
[1770233984309,0.00395884,2141.9,2141.0,9.9637104]
[1770233984706,7.66009925,2142.0,2141.0,9.9637104]
[1770233985009,0.00395884,2141.8,2141.0,7.18410869]
[1770233985202,7.66009925,2142.0,2141.0,7.18410869]
[1770233985408,0.00395884,2141.6,2141.0,7.18410869]
[1770233985912,0.00395884,2141.4,2141.0,7.18410869]
[1770233986109,0.00395884,2141.6,2141.0,7.18410869]
[1770233986609,0.00395884,2141.4,2141.0,7.18410869]
[1770233986811,7.66009925,2142.0,2141.0,7.18410869]
[1770233986812,0.00395884,2141.6,2141.0,7.18410869]
[1770233987014,0.00395884,2141.6,2140.8,7.18410869]
[1770233987306,0.00395884,2141.5,2140.8,7.18410869]
[1770233987510,0.00395884,2141.6,2140.8,7.18410869]
[1770233987912,0.00395884,2141.5,2140.8,7.18410869]
[1770233988409,7.65546439,2141.4,2140.5,7.18410869]
[1770233988713,7.65546439,2140.8,2140.0,2.77960171]
[1770233988910,7.65942323,2140.5,2139.6,7.18410869]
[1770233989211,0.00395884,2140.4,2139.6,7.18410869]
[1770233989412,0.00395884,2140.2,2139.6,7.18410869]
[1770233989912,0.00395884,2140.1,2139.6,7.18877691]
[1770233990109,7.65546439,2140.9,2139.6,7.18877691]
[1770233990608,7.65546439,2140.5,2139.6,0.00466822]
[1770233990809,7.65546439,2140.5,2139.6,7.1843328]
[1770233991712,0.00547538,2140.5,2139.6,7.1843328]
[1770233994215,7.60264703,2140.5,2139.6,7.1843328]
[1770233994407,7.60264703,2140.5,2139.6,0.00022411]
[1770233994613,0.00547538,2140.5,2139.6,0.00022411]
[1770233995309,7.59717165,2140.4,2139.6,0.00022411]
[1770233995508,7.59717165,2140.4,2139.2,7.27465555]
[1770233995509,7.59717165,2140.1,2138.9,7.27465555]
[1770233996417,7.59717165,2140.1,2138.9,7.28065238]
[1770233998118,7.83125165,2140.1,2138.9,0.00599683]
[1770233998520,7.83125165,2140.1,2138.9,7.28065238]
[1770234000323,8.16927001,2140.2,2138.9,7.28065238]
[1770234000619,7.70227001,2140.0,2138.9,0.00599683]
[1770234000817,7.70227001,2139.4,2138.3,7.43559475]
[1770234001120,7.70227001,2139.2,2138.1,7.43559475]
[1770234001321,2.28236411,2140.1,2138.4,7.43559475]
[1770234001322,7.70227001,2139.6,2138.4,7.43559475]
[1770234001521,0.467,2140.2,2138.8,7.43559475]
[1770234001826,8.16927001,2140.2,2139.1,7.43559475]
[1770234002023,0.467,2140.2,2139.1,7.66977475]
[1770234003720,0.467,2140.2,2139.4,0.23415]
[1770234004025,0.00547538,2140.5,2139.5,7.43559475]
[1770234004323,8.17027001,2141.0,2139.5,7.66973475]
[1770234004622,8.17027001,2141.0,2139.7,7.43559475]
[1770234005125,7.93634001,2140.2,2138.7,7.43559475]
[1770234005322,7.93962195,2140.2,2138.9,7.43559475]
[1770234005523,7.70555195,2140.2,2139.1,7.43559475]
[1770234006927,7.70555195,2140.2,2138.8,7.43947698]
[1770234007122,7.70227001,2140.0,2138.8,7.43947698]
[1770234007721,7.70227001,2139.8,2138.8,0.00388223]
[1770234008124,7.70227001,2139.6,2138.4,7.43559475]
[1770234008817,7.70227001,2140.0,2138.4,7.43559475]
[1770234009020,7.70227001,2140.0,2138.6,7.43559475]
[1770234009324,7.70227001,2140.0,2138.8,7.43559475]
[1770234009526,0.468,2140.1,2138.8,7.66981475]
[1770234009827,8.17027001,2140.1,2138.8,7.66981475]
[1770234010320,7.70227001,2140.8,2139.6,7.43559475]
[1770234010521,0.23403,2140.5,2139.2,7.43559475]
[1770234010723,7.70227001,2140.4,2139.2,7.43559475]
[1770234011323,7.70755869,2140.4,2139.2,7.43559475]
[1770234011726,7.70755869,2140.4,2139.2,7.66976475]
[1770234012027,7.70755869,2140.4,2139.0,0.468]
[1770234012028,0.00528868,2140.4,2139.4,7.43559475]
[1770234012225,7.70227001,2141.0,2139.8,7.43559475]
[1770234012828,0.468,2141.3,2139.2,0.23417]
[1770234012829,7.70227001,2140.8,2139.5,7.43559475]
[1770234013028,7.70227001,2140.6,2139.5,7.43559475]
[1770234013326,7.70760955,2140.6,2139.5,7.43559475]
[1770234013929,0.00533954,2140.6,2139.5,7.43559475]
[1770234015033,0.00533954,2140.6,2139.5,7.66972475]
[1770234015423,7.70760955,2140.6,2139.5,7.43559475]
[1770234016031,0.00533954,2140.6,2139.5,7.43559475]
[1770234016231,0.00533954,2140.6,2139.5,7.66973475]
[1770234016437,0.00533954,2140.6,2139.7,7.43559475]
[1770234016627,0.00533954,2140.6,2139.7,7.66971475]
[1770234017027,7.70227001,2141.2,2139.7,7.66971475]
[1770234018035,7.70227001,2141.0,2139.7,7.43559475]
[1770234018235,7.93625001,2141.0,2139.4,7.43559475]
[1770234018533,7.70227001,2141.0,2139.8,7.43559475]
[1770234019824,7.93626001,2140.9,2139.4,7.43559475]
[1770234020229,7.93628001,2140.8,2139.4,7.43559475]
[1770234020429,7.70227001,2140.1,2138.9,7.43559475]
[1770234021734,7.70227001,2140.1,2138.7,7.66981475]
[1770234021935,7.70227001,2140.1,2138.9,7.66980475]
[1770234022531,7.70227001,2140.1,2139.1,7.43559475]
[1770234022735,7.70227001,2140.5,2139.1,7.43559475]
[1770234022937,7.70227001,2140.5,2139.3,7.66975475]
[1770234024035,7.70227001,2140.5,2139.3,7.43559475]
[1770234025130,7.70227001,2140.5,2139.0,13.99744396]
[1770234025335,7.70227001,2140.5,2139.1,11.38174546]
[1770234025636,7.70227001,2140.5,2139.1,7.03830249]
[1770234025838,7.70227001,2140.5,2139.3,7.03830249]
[1770234026937,7.70227001,2140.5,2139.0,4.41372976]
[1770234026938,7.70227001,2140.5,2139.0,3.01379171]
[1770234027137,7.10040044,2140.4,2139.3,7.27246249]
[1770234027541,7.10040044,2140.4,2139.0,9.8179042]
[1770234027740,7.10040044,2140.4,2139.0,7.03830249]
[1770234027940,7.33446044,2140.3,2139.0,7.03830249]
[1770234028240,7.10040044,2140.3,2139.2,7.27247249]
[1770234028437,7.10040044,2140.6,2139.4,7.27245249]
[1770234030042,7.10040044,2140.8,2139.6,7.27243249]
[1770234031240,7.10040044,2140.7,2139.6,7.27243249]
[1770234033941,7.10040044,2140.7,2139.7,7.03830249]
[1770234034339,0.468,2141.0,2140.2,7.03830249]
[1770234034544,7.10612783,2141.2,2140.2,9.82229807]
[1770234034744,7.10612783,2141.2,2140.2,7.04269636]
[1770234036541,0.00572739,2141.2,2140.5,7.03830249]
[1770234036941,7.56840044,2141.8,2140.5,7.03830249]
[1770234037134,7.56840044,2141.8,2140.8,7.03830249]
[1770234037341,0.468,2141.8,2141.0,7.03830249]
[1770234037544,7.10040044,2142.1,2141.0,7.03830249]
[1770234037740,7.10040044,2142.0,2140.5,7.03830249]
[1770234037945,7.10040044,2141.9,2140.5,7.03830249]
[1770234038548,7.56840044,2141.8,2140.2,10.05635807]
[1770234038943,7.56840044,2141.8,2140.3,7.03830249]
[1770234039245,7.56840044,2141.8,2140.3,7.27235249]
[1770234039439,7.56840044,2141.8,2140.7,7.03830249]
[1770234039639,7.56840044,2141.8,2140.8,7.03830249]
[1770234040650,7.56840044,2141.8,2140.5,7.03830249]
[1770234040850,7.56840044,2141.8,2140.2,4.41799363]
[1770234040851,7.10040044,2141.5,2140.2,0.00439387]
[1770234041040,7.10040044,2141.5,2140.2,7.04269636]
[1770234041941,12.57318128,2141.5,2140.2,0.00439387]
[1770234042146,7.10040044,2141.2,2140.2,0.00439387]
[1770234043151,7.33436044,2141.2,2140.2,0.00439387]
[1770234044549,12.80714128,2141.2,2140.2,0.00439387]
[1770234044749,7.10040044,2141.2,2139.8,7.27241249]
[1770234045750,7.10040044,2141.2,2139.8,7.27589408]
[1770234047243,7.10040044,2141.5,2140.1,8.11504249]
[1770234047448,7.10040044,2141.7,2140.6,7.03830249]
[1770234049754,0.468,2141.8,2141.0,7.03830249]
[1770234052453,7.56740044,2142.6,2141.2,7.27225249]
[1770234053253,7.56740044,2142.6,2140.7,4.17953976]
[1770234053254,7.10040044,2142.1,2140.7,0.23401]
[1770234053455,7.3383375,2142.1,2140.6,7.03830249]
[1770234053957,7.3383375,2142.1,2140.3,3.01365171]
[1770234053958,7.64960194,2141.6,2140.1,0.467]
[1770234054254,7.41568194,2141.4,2140.1,0.467]
[1770234054446,7.41568194,2141.4,2139.9,7.35507231]
[1770234055054,7.64962194,2141.4,2139.9,7.35507231]
[1770234055250,7.64962194,2141.4,2139.8,0.00348159]
[1770234055455,7.41568194,2141.2,2139.8,0.00348159]
[1770234055655,7.64964194,2141.2,2139.8,0.00348159]
[1770234056157,7.41568194,2141.8,2140.9,6.5516286]
[1770234056452,7.419759,2142.1,2140.9,6.7856186]
[1770234057749,0.467,2143.3,2141.5,6.73426894]
[1770234058060,7.41568194,2143.2,2141.5,6.73426894]
[1770234058957,7.42169952,2143.2,2141.5,6.73775051]
[1770234059658,7.42169952,2143.2,2141.6,6.59534174]
[1770234059952,7.42169952,2143.2,2141.8,6.59534174]
[1770234061457,7.65543952,2143.2,2141.5,6.65960363]
[1770234062861,7.07543067,2143.0,2141.5,6.65960363]
[1770234063060,7.07543067,2142.5,2141.5,0.00348157]
[1770234063263,7.07543067,2142.3,2141.5,0.00348157]
[1770234063458,7.30927067,2142.3,2140.7,2.77960171]
[1770234063663,7.07543067,2142.1,2140.6,6.70904426]
[1770234064054,7.07543067,2142.1,2140.5,0.70103]
[1770234064264,7.30929067,2142.1,2140.5,0.70103]
[1770234064665,7.30929067,2142.1,2140.5,0.70523956]
[1770234066165,7.07543067,2142.1,2140.8,6.68279507]
[1770234066362,7.07543067,2142.1,2140.8,6.91679507]
[1770234066561,0.467,2142.4,2141.0,6.68279507]
[1770234066757,7.54243067,2142.4,2141.2,6.68279507]
[1770234066963,0.467,2142.4,2141.4,6.68279507]
[1770234067163,7.07543067,2142.7,2141.4,6.68279507]
[1770234067865,0.47301758,2143.2,2142.3,6.70634205]
[1770234068169,7.07543067,2143.4,2142.3,0.00562176]
[1770234069270,7.08097832,2143.4,2142.3,6.75492009]
[1770234069465,0.70065,2144.1,2142.3,6.75492009]
[1770234069466,0.467,2144.1,2142.7,6.74929833]
[1770234069666,7.07543067,2144.2,2143.0,7.82456833]
[1770234069872,7.07543067,2144.8,2143.3,6.74929833]
[1770234070467,7.07898561,2144.8,2143.3,6.74929833]
[1770234070672,7.31255561,2144.8,2143.0,6.74929833]
[1770234070874,7.07543067,2144.5,2142.7,6.98308833]
[1770234071073,7.07543067,2144.2,2142.4,7.21629833]
[1770234072572,7.07543067,2144.0,2142.3,0.00562176]
[1770234072770,7.07543067,2143.6,2142.3,0.00562176]
[1770234072976,7.07543067,2144.0,2142.7,6.7890167]
[1770234073674,7.07543067,2144.6,2142.7,6.7890167]
[1770234074274,7.07543067,2144.4,2142.7,6.7890167]
[1770234074672,7.07543067,2144.4,2142.9,6.82899531]
[1770234074878,7.07543067,2144.4,2143.2,6.82899531]
[1770234076477,7.07543067,2144.4,2142.7,7.12712306]
[1770234077677,7.07543067,2144.2,2142.7,6.89334306]
[1770234079978,7.07543067,2144.2,2142.5,0.70081]
[1770234079979,7.07543067,2144.2,2142.5,7.60747358]
[1770234082381,7.07543067,2144.0,2142.5,0.467]
[1770234082575,7.07543067,2143.8,2142.5,0.467]
[1770234082777,7.30910067,2143.8,2142.3,0.00562176]
[1770234083674,7.07543067,2143.8,2142.3,6.91805063]
[1770234083881,7.07543067,2143.8,2142.7,6.91242887]
[1770234084275,7.26463104,2144.5,2143.4,6.91242887]
[1770234084877,7.26463104,2144.5,2143.0,6.91242887]
[1770234085078,7.26463104,2144.1,2142.8,0.467]
[1770234085473,7.26463104,2144.1,2143.1,7.20423105]
[1770234085773,7.26463104,2144.1,2142.8,7.43749105]
[1770234085979,7.26463104,2144.1,2142.8,0.467]
[1770234086379,7.96527104,2144.1,2142.8,0.467]
[1770234087383,7.73163104,2144.1,2142.8,7.55661428]
[1770234087582,7.26463104,2144.5,2143.3,7.08961428]
[1770234087884,7.26463104,2144.5,2143.4,7.32332428]
[1770234088274,7.26463104,2144.5,2143.0,7.08961428]
[1770234088475,7.26463104,2144.5,2143.2,7.08961428]
[1770234089084,7.26463104,2144.5,2143.3,7.32333428]
[1770234089284,7.26463104,2144.5,2143.0,7.36358459]
[1770234090480,7.26818598,2144.8,2143.6,7.59727459]
[1770234091485,7.26818598,2144.8,2143.8,7.38448611]
[1770234091982,0.1,2145.1,2144.1,7.61812611]
[1770234092187,7.36463104,2145.1,2144.1,7.38448611]
[1770234092382,7.36463104,2145.1,2143.8,0.467]
[1770234092885,7.83604274,2145.1,2143.8,0.00586774]
[1770234093284,7.26463104,2144.9,2143.8,0.00586774]
[1770234094888,7.26463104,2144.9,2143.8,7.39751336]
[1770234095890,7.26463104,2144.9,2143.8,0.00586774]
[1770234096680,7.26463104,2144.9,2143.8,7.34657967]
[1770234096886,0.5714117,2145.1,2143.8,7.34657967]
[1770234097086,0.5714117,2145.1,2144.0,7.34071193]
[1770234097286,0.5714117,2145.1,2144.0,10.12031364]
[1770234097487,0.5714117,2145.1,2144.1,7.36864531]
[1770234097987,7.83604274,2145.1,2144.1,7.36864531]
[1770234098186,7.83604274,2145.1,2143.9,3.01326171]
[1770234098388,8.06957274,2145.1,2143.8,3.25246945]